Cogmind - Beta 13 @@@ ROGUE MODE // 2024.06.23 @ 23:20:38 Player: McFluffinkins Result: Destroyed by G-34 Mercenary with Small Laser Performance ------------- Evolutions (0) 0 Regions Visited (1) 200 Robots Destroyed (9) 45 Value Destroyed (198) 198 Prototype IDs (0) 0 Alien Tech Used (0) 0 Bonus (0) 0 TOTAL SCORE: 443 Bonus ------- None Cogmind --------- Core Integrity 0/250 Matter 258/300 Energy 124/125 System Corruption 0% Temperature Cool (16) Movement Core (400) Ox7 Location -10/Materials Parts ------- > --- POWER (1) -------- Light Ion Engine > --- PROPULSION (2) --- (None) > --- UTILITY (2) ------ Large Storage Unit > --- WEAPON (2) ------- Light Assault Rifle > --- INVENTORY (15) --- Ion Engine Light Treads Light Treads Heat Sink Large Storage Unit Visual Processing Unit Signal Interpreter Hacking Suite Assault Rifle Light Assault Rifle Light Assault Rifle Peak State ------------ > --- POWER ------------ Light Ion Engine > --- PROPULSION ------- Wheel Compact Wheel > --- UTILITY ---------- Large Storage Unit Sensor Array > --- WEAPON ----------- Assault Rifle Assault Rifle > --- INVENTORY -------- Ion Engine Light Ion Engine Light Treads Light Treads Small Storage Unit Small Storage Unit Medium Storage Unit Medium Storage Unit Large Storage Unit Assault Rifle [Rating: 8] Favorites ----------- Power Light Ion Engine Engine Light Ion Engine Propulsion Wheel Treads Light Treads Leg Aluminum Leg Wheel Wheel Utility Sensor Array Device Sensor Array Storage Large Storage Unit Weapon Assault Rifle Ballistic Gun Assault Rifle Build | -11 -10 ------- Run | Yrd Mat Slots Evolved . | . . Power . | . . Propulsion . | . . Utility . | . . Weapon . | . . Parts Attached 15 | 9 6 Power 3 | 2 1 Engine 3 | 2 1 Core . | . . Reactor . | . . Propulsion 4 | 4 . Treads 1 | 1 . Leg 1 | 1 . Wheel 2 | 2 . Hover . | . . Flight . | . . Utility 3 | 1 2 Device 1 | . 1 Storage 2 | 1 1 Processor . | . . Hackware . | . . Protection . | . . Artifact . | . . Weapon 5 | 2 3 Energy Gun . | . . Energy Cannon . | . . Ballistic Gun 5 | 2 3 Ballistic Cannon . | . . Launcher . | . . Special Weapon . | . . Impact Weapon . | . . Slashing Weapon . | . . Piercing Weapon . | . . Special Melee Weapon . | . . Unidentified Prototypes . | . . Parts Lost 6 | . 6 Power 1 | . 1 Propulsion 2 | . 2 Utility 1 | . 1 Weapon 2 | . 2 Highest Loss Streak 6 | . 6 To Critical Strikes . | . . Average Slot Usage (%) 95 | . 95 Engine 12 | . 12 Wheel 26 | . 26 Device 12 | . 12 Storage 14 | . 14 Ballistic Gun 28 | . 28 Naked Turns . | . . Heaviest Build 28 | 12 28 Greatest Support 26 | 26 26 Greatest Overweight (x) 2 | . 2 Average Overweight (x) . | . . Largest Inventory Capacity 15 | 8 15 Average Capacity 12 | 6 12 Most Carried 14 | 5 14 Average Carried 7 | 4 7 Final Capacity 15 | 8 15 Final Carried 11 | 4 11 Class Distribution -------------------- 100% | Mutant Dominant Class ---------------- Mutant | -10/Materials Resources | -11 -10 ----------- Run | Yrd Mat Matter Collected 432 | 280 152 Remotely . | . . Salvage Created 238 | . 238 Parts 19 | . 19 Haulers Intercepted . | . . Recyclers Shooed . | . . Parts Field Recycled . | . . Retrieved Matter . | . . Parts Self-Destructed . | . . Prevented . | . . Kills | -11 -10 ------- Run | Yrd Mat Combat Hostiles Destroyed 7 | . 7 Guns 7 | . 7 Classes Destroyed 4 | . 4 Operator 1 | . 1 Watcher 1 | . 1 Swarmer 3 | . 3 Grunt 4 | . 4 Best Kill Streak 2 | . 2 Combat Bots Only 2 | . 2 Max Kills in Single Turn 1 | . 1 Gunslinging . | . . Exploded . | . . Melee . | . . Uniques/NPCs Destroyed . | . . Combat | -11 -10 -------- Run | Yrd Mat Hostile Shots Fired 98 | . 98 Missed 25 | . 25 Damage Taken 833 | . 833 Core 258 | . 258 Absorbed by Shields . | . . Core Remaining (%) 100 | 100 . Volleys Fired 31 | . 31 Largest 2 | . 2 Hottest 40 | . 40 Shots Fired 60 | . 60 Gun 60 | . 60 Cannon . | . . Launcher . | . . Special . | . . Kinetic 60 | . 60 Thermal . | . . Explosive . | . . Electromagnetic . | . . Robot Hit Streak 8 | . 8 Robot Miss Streak 4 | . 4 Penetration Max . | . . Secondary Targets 1 | . 1 Max Gunslinging Chain 1 | . 1 Shots Hit Robots 38 | . 38 Core Hits 17 | . 17 Critical Kills . | . . Critical Parts Destroyed . | . . Critical Strikes . | . . Melee Attacks . | . . Impact . | . . Slashing . | . . Piercing . | . . Sneak Attacks . | . . Combat Hostiles . | . . Follow-up Attacks . | . . Damage Inflicted 455 | . 455 Guns 455 | . 455 Cannons . | . . Explosions . | . . Melee . | . . Ramming . | . . Kinetic 455 | . 455 Thermal . | . . Explosive . | . . Electromagnetic . | . . Impact . | . . Slashing . | . . Piercing . | . . Highest Corruption . | . . Average Corruption . | . . Corruption Purged . | . . Corruption Blocked . | . . Overload Shots . | . . Overflow Damage . | . . Projectiles . | . . Explosions . | . . Melee . | . . Knockbacks . | . . Impact . | . . Kinetic . | . . Secondary . | . . Self-Inflicted Damage . | . . Shots . | . . Rammed . | . . Targets Rammed . | . . Kicked . | . . Crushed . | . . Highest Temperature 46 | . 46 Average Temperature 11 | . 11 Received Heat Transfer 423 | . 423 Siege Activations . | . . Robots Corrupted . | . . Combat Hostiles . | . . Parts Fried . | . . Impact Corruptions . | . . Robots Melted . | . . Combat Hostiles . | . . Parts Melted . | . . Heat Transferred . | . . Parts Sabotaged . | . . Parts Stolen . | . . Parts Stripped . | . . Power Chain Reactions . | . . Alert | -11 -10 ------- Run | Yrd Mat Peak Influence 220 | . 220 Initial . | . . Average 107 | . 121 Maximum Alert Level 1 | . 1 Low Security (%) 88 | 100 87 Level 1 11 | . 12 Level 2 . | . . Level 3 . | . . Level 4 . | . . Level 5 . | . . High Security . | . . Max Security . | . . Squads Dispatched 3 | . 3 Investigation . | . . Extermination . | . . Reinforcement 3 | . 3 Assault . | . . Garrison . | . . Intercept . | . . Searches Triggered . | . . Construction Impeded . | . . Haulers Reinforced . | . . Active Scanning Responses . | . . Cargo Convoy Interrupts . | . . Stealth | -11 -10 --------- Run | Yrd Mat Distress Signals 2 | . 2 Communications Jammed . | . . Distress Signals . | . . Times Spotted 19 | . 19 Peak Tracking Total 6 | . 6 Tactical Retreats 1 | . 1 Traps | -11 -10 ------- Run | Yrd Mat Traps Triggered 1 | . 1 Indirectly . | . . Trap Hack Attempts . | . . Triggered . | . . Disarmed . | . . Reprogrammed . | . . Reused . | . . Traps Extracted . | . . Installed . | . . Triggered . | . . Machines | -11 -10 ---------- Run | Yrd Mat Machines Disabled . | . . Max in Single Turn . | . . Machines Repaired . | . . Machines Dismantled . | . . Machines Sabotaged . | . . Overloaded Fab Kills . | . . Hacking | -11 -10 --------- Run | Yrd Mat Machines Accessed 1 | . 1 Terminals . | . . Fabricators . | . . Repair Stations . | . . Recycling Units 1 | . 1 Scanalyzers . | . . Garrison Access . | . . Total Hacks 7 | . 7 Successful 6 | . 6 Failed 1 | . 1 Catastrophic . | . . Database Lockouts . | . . Manual . | . . Terminals . | . . Fabricators . | . . Repair Stations . | . . Recycling Units 7 | . 7 Scanalyzers . | . . Garrison Access . | . . Terminal Hacks . | . . Fabricator Hacks . | . . Repair Station Hacks . | . . Recycling Unit Hacks 6 | . 6 Recycle Component 4 | . 4 Retrieve Matter 1 | . 1 Retrieve Components 1 | . 1 Scanalyzer . | . . Garrison Access Hacks . | . . Unauthorized Hacks . | . . Terminals . | . . Fabricators . | . . Repair Stations . | . . Recycling Units . | . . Scanalyzers . | . . Garrison Access . | . . Data Cores Recovered . | . . Used . | . . Hacking Detections 1 | . 1 Full Trace Events 1 | . 1 Feedback Events . | . . Feedback Blocked . | . . Robot Schematics Acquired . | . . Robots Built . | . . Authchips . | . . Time . | . . Total Robot Build Rating . | . . Part Schematics Acquired . | . . Parts Built . | . . Authchips . | . . Time . | . . Total Part Build Rating . | . . Parts Repaired . | . . Time . | . . Parts Recycled 4 | . 4 Recycled Matter . | . . Retrieved Matter . | . . Retrieved Components 9 | . 9 Parts Scanalyzed . | . . Part Schematics Acquired . | . . Parts Damaged . | . . Bothacking | -11 -10 ------------ Run | Yrd Mat Used RIF Installer . | . . Robots Hacked . | . . Non-combat . | . . Combat . | . . Robot Hacks Applied . | . . Relay Couplers Released . | . . Fabnet Peak Effective % . | . . Robots Rewired . | . . Allies Hacked . | . . Hacks Repelled . | . . Allies | -11 -10 -------- Run | Yrd Mat Total Allies . | . . Largest Group . | . . Highest-Rated Group . | . . Highest-Rated Ally . | . . Total Orders . | . . Ally Attacks . | . . Total Damage . | . . Kills . | . . Allies Corrupted . | . . Allies Melted . | . . Intel | -11 -10 ------- Run | Yrd Mat Robot Analysis Total . | . . Derelict Logs Recovered . | . . Drone Launches . | . . Drone Recoveries . | . . Exploration | -11 -10 ------------- Run | Yrd Mat Turns Passed 457 | 54 403 Spaces Moved 318 | 37 281 Core 6 | 6 . Treads 4 | 4 . Legs 7 | 7 . Wheels 301 | 20 281 Hover . | . . Flight . | . . Fastest Speed 50 | 50 90 Average Speed 99 | 96 99 Slowest Speed 160 | 160 110 Overloaded Moves . | . . Propulsion Burnouts . | . . Robots Hopped . | . . Cave-ins Triggered . | . . Exploration Rate (%) 30 | 3 58 Regions Visited 1 Branch Regions . Pre-discovered Areas . | . . Known Exits Taken . | . . Unknown Exits Taken 1 | 1 . Scrap Searched . | . . Spaces Dug . | . . Terrain Destroyed . | . . Melee . | . . Projectile . | . . AOE . | . . Terrain Rammed . | . . Walls Destroyed . | . . Machines Disabled . | . . Actions | -11 -10 --------- Run | Yrd Mat Total 399 | 52 347 Wait 11 | . 11 Move 317 | 36 281 Hop . | . . Pick Up 22 | 6 16 Fast Attach 5 | 5 . Attach 5 | 2 3 Detach . | . . Swap 5 | 2 3 Drop 3 | 1 2 Fire 31 | . 31 Melee . | . . Ram . | . . Kick . | . . Crush . | . . Escape Stasis . | . . Rewire . | . . Trap . | . . Miscellaneous . | . . Route ------- -11/Scrapyard -10/Materials (discovered 2 exits: [*Mat] / [*Min]) History --------- Turn | Location | Event 20 | -11/Scrapyard | Discovered new exit (range 14) 55 | -11/Scrapyard | Entered Materials 308 | -10/Materials | Build established: Mutant 319 | -10/Materials | Discovered new exit (range 16) 418 | -10/Materials | Discovered new exit (range 14) 429 | -10/Materials | Core integrity fell below 50% 448 | -10/Materials | Core integrity fell below 20% 458 | -10/Materials | Destroyed by G-34 Mercenary with Small Laser Last Messages --------------- reinforcements to Terminal M003. 00417_ K-01 Serf cleans the Recycling Unit. 00418_ EXIT=FOUND 00419_ Lgt. Ion Engine destroyed. 00422_ Sensor Array destroyed. 00423_ U-05 Engineer lays Concrete. 00426_ U-05 Engineer builds a Wall. 00426_ U-05 Engineer lays Concrete. 00427_ U-05 Engineer builds a Wall. 00433_ U-05 Engineer lays Concrete. 00438_ U-05 Engineer builds a Wall. 00439_ Critical hit (Burn: +37). 00441_ U-05 Engineer lays Concrete. 00441_ G-34 Mercenary destroyed. 00444_ Lgt. Assault Rifle destroyed. 00453_ G-34 Mercenary destroyed. 00453_ Switching to secondary target: G-34 Mercenary. 00454_ Assault Rifle destroyed. 00454_ Wheel destroyed. Map ----- +----------------------------------------------------+ | " """ #"" < #????????????????????????????????? | | """""" #"| #????????????????????????????????? | | """ " #" #????????????????????????????????? | | #""" #????????????????????????????????? | | ########### ##????????? #?????????????????????? | | ???????## # #?????????? ??????????????????????? | | ???????# #????????## #?????????????????????? | | ???????## # #???????? ?????????????????????? | | ????????### #???????? ?????????????????????? | | ??????????# #???????? """"???????????????????? | | ??????????# ##+###??# """""??????????????????? | | ??????????# #??# """"" ?????????????????? | | ?########## #??# ??????????????????? | | ?# # #??# ? #??????????????? | | ?# """ ""# #### """"" #??????????????? | | ?# """ T"# ####m """"" #??????????????? | | ?# """ ""#= """"" #??????????????? | | ?# %+[ #??????????????? | | ?#! [ =#* #??????????????? | | ?#! # #####+## # #??????????????? | | ?#! # ##[ # g"Y" #####??????????? | | ?# # ## # """ #??????????? | | ?########## ## / g < #??????????? | | ??????????# ## # =%* #??????????? | | ??????????# ## ###g#######+##????????????? | | ??????????# ## #?#@#?????????????????????? | | ??????????? ?# #?# #?????????????????????? | | ??????????? ?# #?# #?????????????????????? | | ??????????? ?# #?# #?????????????????????? | | ??????????? ?#######+##?# #?????????????????????? | | ??????????? ???????? #??# #?????????????????????? | | ??????????? ???????? ??# #?????????????????????? | | ??????????? ???????? ??# ?????????????????????? | | ????????????????????? ???##?????????????????????? | | ????????????????????????????????????????????????? | | ????????????????????????????????????????????????? | | ????????????????????????????????????????????????? | | ????????????????????????????????????????????????? | | | | | | | | | | | | | | | | | | | | | | | | | +----------------------------------------------------+ Best States ------------- Heat Dissipation 25 Energy Generation 10 Energy Capacity 250 Matter Stores 300 Matter Capacity 300 Sight Range 16 Robot Scan Range 14 Terrain Scan Density 10 Evasion (%) 50 Item Schematics ----------------- None Robot Schematics ------------------ None Fabricated ------------ Nothing Alien Tech Used ----------------- None Achievements -------------- None Challenges ------------ None Game ------ Seed XenonHardlightStabilizer Manual? 0 Play Time 00:07:46 Cumulative 14.3 hours Start 2024.06.23 @ 23:14:44 End 2024.06.23 @ 23:20:38 Sessions 1 Manual Loads 0 Difficulty Rogue Special Mode None Game No. 19 Rogue 19 Adventurer 0 Explorer 0 Win Type - Total 0 Types 0/0/0/0/0/0/0/0/0 Lore% 15 Gallery% 19 Achievement% 16 Wizard Run 0 Options --------- Layout 1 ASCII 0 Keyboard 0 Movement Mouse Keybinds 0 Fullscreen 2 Font 32/Terminus Map View 50x35 Zoom Use 0% Tactical HUD 1 Map Filters NONE Filters NONE Steam 1 RUN: b1157f7e-85cc-42dc-a34a-39f88161937f